bitfinex/quotes_ETHUSD_20220118
["timestamp","ask_amount","ask_price","bid_price","bid_amount"]
[1642545975684,0.00643433,3183.3,3183.2,4.80288558]
[1642545975886,0.00643433,3183.3,3183.2,6.37344558]
[1642545976285,0.00643433,3183.3,3183.2,3.57056]
[1642545977023,0.00643433,3183.3,3183.2,3.87056]
[1642545977222,0.00643433,3183.3,3183.2,6.43023431]
[1642545977422,0.00643433,3183.3,3183.2,3.87056]
[1642545977727,0.00643433,3183.3,3183.2,4.17056]
[1642545978825,0.00643433,3183.3,3183.2,3.17056]
[1642545979628,0.00643433,3183.3,3183.2,6.62056]
[1642545980274,0.00643433,3183.3,3183.2,7.62056]
[1642545980478,0.00643433,3183.3,3183.2,7.74616]
[1642545981075,0.00643433,3183.3,3183.2,10.00747107]
[1642545981279,0.00643433,3183.3,3183.2,6.55747107]
[1642545982276,0.00643433,3183.3,3183.2,6.43187107]
[1642545984624,0.00643433,3183.3,3183.2,9.78187107]
[1642545985025,0.00643433,3183.3,3183.2,6.43187107]
[1642545985828,0.00643433,3183.3,3183.2,6.55737107]
[1642545987032,0.00643433,3183.3,3183.2,6.43187107]
[1642545987874,0.00643433,3183.3,3183.2,5.43187107]
[1642545988476,0.00643433,3183.3,3183.2,10.93187107]
[1642545988675,0.00643433,3183.3,3183.2,5.43187107]
[1642545989278,0.00643433,3183.3,3183.2,6.55737107]
[1642545989478,0.0018055,3183.5,3183.4,8.93506]
[1642545989679,0.0018055,3183.5,3183.4,1.78506]
[1642545989880,0.00294235,3183.5,3183.4,2.08506]
[1642545990178,0.00294235,3183.5,3183.4,2.38506]
[1642545990379,0.00294235,3183.5,3183.4,3.38506]
[1642545990579,0.0027116,3183.7,3183.5,8.1]
[1642545990778,0.0027116,3183.7,3183.6,7.23511]
[1642545990979,0.0027116,3183.7,3183.6,2.08511]
[1642545991180,0.00384844,3183.7,3183.6,2.08511]
[1642545991537,0.00384844,3183.7,3183.6,8.28511]
[1642545991728,0.00384844,3183.7,3183.6,10.98362269]
[1642545992024,0.00384844,3183.7,3183.6,13.24493376]
[1642545992225,0.00384844,3183.7,3183.6,14.24493376]
[1642545992626,0.00384844,3183.7,3183.6,11.54642107]
[1642545994339,0.00384844,3183.7,3183.6,11.79032107]
[1642545994532,0.00384844,3183.7,3183.6,11.67192107]
[1642545994937,0.01010457,3183.7,3183.6,11.78952107]
[1642545995374,0.01010457,3183.7,3183.6,11.54642107]
[1642545996376,0.01010457,3183.7,3183.6,11.66722107]
[1642545996578,0.01010457,3183.7,3183.6,11.66482107]
[1642545996779,0.01010457,3183.7,3183.6,10.66402107]
[1642545996986,0.01010457,3183.7,3183.6,13.14607209]
[1642545998179,0.01010457,3183.7,3183.6,13.26447209]
[1642545998379,0.01010457,3183.7,3183.6,14.26927209]
[1642545998581,7.499,3184.0,3183.8,0.8391908]
[1642545998781,7.499,3184.0,3183.9,9.1723757]
[1642545999033,7.499,3184.0,3183.9,9.4723757]
[1642545999225,7.499,3184.0,3183.9,10.4723757]
[1642545999427,7.499,3184.0,3183.9,12.73368677]
[1642545999628,7.499,3184.0,3183.9,6.23368677]
[1642546000226,7.499,3184.0,3183.9,7.23368677]
[1642546002432,7.499,3184.0,3183.9,4.56131107]
[1642546003079,7.499,3184.0,3183.9,7.14475773]
[1642546004789,7.50422482,3184.0,3183.9,9.61957773]
[1642546005483,7.50422482,3184.0,3183.9,7.03693107]
[1642546005685,7.50422482,3184.0,3183.9,9.65107234]
[1642546005885,0.00522482,3184.0,3183.9,15.69787234]
[1642546006085,0.00522482,3184.0,3183.9,15.86461234]
[1642546006285,0.003308,3184.2,3184.0,0.7849]
[1642546006536,0.003308,3184.2,3184.1,9.0255]
[1642546006727,0.003308,3184.2,3184.1,9.4431]
[1642546007033,0.003308,3184.2,3184.1,10.4447]
[1642546007227,0.003308,3184.2,3184.1,10.33277585]
[1642546007627,0.003308,3184.2,3184.1,12.68744585]
[1642546007833,0.003308,3184.2,3184.1,14.82325692]
[1642546008234,0.003308,3184.2,3184.1,15.82325692]
[1642546009332,0.003308,3184.2,3184.1,15.94165692]
[1642546009534,0.003308,3184.2,3184.1,15.94085692]
[1642546009735,0.003308,3184.2,3184.1,15.82325692]
[1642546009940,0.003308,3184.2,3184.1,15.94085692]
[1642546010276,0.003308,3184.2,3184.1,15.94645692]
[1642546010480,4.8705,3184.9,3184.2,8.4]
[1642546010686,4.8705,3184.9,3184.3,8.55]
[1642546010885,4.8705,3184.9,3184.3,10.15]
[1642546011781,4.8705,3184.9,3184.3,12.41131107]
[1642546013487,4.8705,3184.9,3184.3,13.41131107]
[1642546013885,4.8705,3184.9,3184.6,0.93485]
[1642546014129,4.8705,3184.9,3184.7,0.15]
[1642546014333,0.00625266,3184.8,3184.7,0.45]
[1642546014538,0.00625266,3184.8,3184.7,1.45]
[1642546014932,0.00625266,3184.8,3184.7,0.45]
[1642546015139,0.00625266,3184.8,3184.7,3.98106107]
[1642546015334,0.00625266,3184.8,3184.7,4.28106107]
[1642546015535,0.00625266,3184.8,3184.7,5.28106107]
[1642546016333,0.00625266,3184.8,3184.7,6.28106107]
[1642546019283,0.00625266,3184.8,3184.7,5.28106107]
[1642546020385,0.00625266,3184.8,3184.7,6.28106107]
[1642546020586,4.8705,3184.9,3184.7,6.28106107]
[1642546020587,4.8705,3184.9,3184.7,8.85557092]
[1642546020788,4.8705,3184.9,3184.8,12.44762574]
[1642546020986,4.8705,3184.9,3184.8,12.74762574]
[1642546021189,0.0018096,3185.2,3185.0,0.15]
[1642546021391,0.0018096,3185.2,3185.1,8.6]
[1642546021632,0.0018096,3185.2,3185.1,11.89060841]
[1642546021846,0.0018096,3185.2,3185.1,10.2]
[1642546022237,0.0018096,3185.2,3185.1,12.46131107]
[1642546022638,0.0018096,3185.2,3185.1,12.94606107]
[1642546022849,0.1255,3185.8,3185.3,0.15]
[1642546023042,0.1255,3185.8,3185.4,0.15]
[1642546023240,0.00454739,3185.6,3185.4,3.03985218]
[1642546023439,0.1255,3185.8,3185.6,0.15]
[1642546023639,0.1255,3185.8,3185.7,0.15]
[1642546023842,4.46836956,3186.5,3185.8,6.3]
[1642546024042,3.265305,3186.5,3186.0,0.15]
[1642546024341,3.265305,3186.5,3186.4,1.15]
[1642546024544,0.003005,3186.5,3186.4,1.15]
[1642546024740,0.00812081,3186.5,3186.4,1.15]
[1642546025586,0.00812081,3186.5,3186.4,1.93447]
[1642546028388,0.00812081,3186.5,3186.4,1.15]
[1642546030131,0.00812081,3186.5,3186.4,2.45]
[1642546030335,0.00812081,3186.5,3186.4,1.15]
[1642546030734,0.00812081,3186.5,3186.4,2.45]
[1642546030934,0.00812081,3186.5,3186.4,1.15]
[1642546031136,0.00812081,3186.5,3186.4,2.15]
[1642546031335,0.00812081,3186.5,3186.4,1.15]
[1642546031536,0.00812081,3186.5,3186.4,2.15]
[1642546031737,0.00812081,3186.5,3186.4,1.15]
[1642546031937,0.00812081,3186.5,3186.4,2.15]
[1642546032889,0.00812081,3186.5,3186.4,1.15]
[1642546034289,0.00812081,3186.5,3186.4,2.15]
[1642546035597,0.00812081,3186.5,3186.4,2.2755]
[1642546036736,0.00812081,3186.5,3186.4,2.15]
[1642546038540,0.0018124,3186.7,3186.4,2.15]
[1642546038739,0.0018124,3186.7,3186.6,0.15]
[1642546039141,0.00294925,3186.7,3186.6,0.15]
[1642546039440,0.00294925,3186.7,3186.5,0.15]
[1642546040594,23.53234925,3187.2,3186.5,0.15]
[1642546040810,18.46,3187.0,3186.5,0.15]
[1642546041194,0.28039614,3187.1,3186.9,1.0]
[1642546041397,0.00227369,3187.1,3187.0,0.15]
[1642546041595,23.40684925,3187.2,3187.0,0.15]
[1642546041596,22.4591,3187.2,3187.0,0.15]
[1642546041894,3.3255,3187.1,3187.0,0.15]
[1642546043096,21.7855,3187.1,3187.0,0.15]
[1642546043299,21.66,3187.1,3187.0,0.15]
[1642546044338,21.66,3187.1,3186.7,0.78456]
[1642546044339,21.66,3187.1,3186.9,1.15]
[1642546044740,0.00170527,3187.0,3186.9,1.15]
[1642546044939,0.00170527,3187.0,3186.9,3.02740456]
[1642546045139,0.00645073,3187.1,3186.9,0.15]
[1642546045338,0.00645073,3187.1,3187.0,1.15]
[1642546045739,0.00645073,3187.1,3187.0,1.93441]
[1642546047340,0.00645073,3187.1,3187.0,4.81181456]
[1642546047540,0.00645073,3187.1,3187.0,6.53731456]
[1642546047796,0.00645073,3187.1,3187.0,3.35991]
[1642546047991,0.00645073,3187.1,3187.0,3.05991]
[1642546048189,0.00645073,3187.1,3187.0,2.35991]
[1642546048391,0.00645073,3187.1,3187.0,3.35991]
[1642546048791,0.00645073,3187.1,3187.0,2.35991]
[1642546048990,0.00645073,3187.1,3187.0,3.35991]
[1642546049891,0.00835772,3187.4,3187.2,0.15]
[1642546050096,0.00835772,3187.4,3187.3,7.65961]
[1642546050291,0.00835772,3187.4,3187.3,8.95961]
[1642546050490,0.00835772,3187.4,3187.3,9.95961]
[1642546052133,0.00835772,3187.4,3187.3,12.71200319]
[1642546053236,0.00835772,3187.4,3187.3,6.11200319]
[1642546053436,0.00835772,3187.4,3187.3,2.35961]
[1642546053641,3.90467292,3187.8,3187.5,0.15]
[1642546053838,3.85467292,3187.8,3187.7,0.15]
[1642546054038,3.85467292,3187.8,3187.7,2.82650469]
[1642546054238,3.1087055,3188.0,3187.7,2.82650469]
[1642546054438,0.0018055,3188.0,3187.9,0.15]
[1642546055038,0.0018055,3188.0,3187.8,0.15]
[1642546055289,0.0018055,3188.0,3187.9,4.2]
[1642546055485,0.0018055,3188.0,3187.9,2.15]
[1642546055686,0.00692131,3188.0,3187.9,1.15]
[1642546055887,0.00692131,3188.0,3187.9,4.02632351]
[1642546056189,0.0018208,3188.2,3188.1,9.18398]
[1642546056485,0.00295765,3188.2,3188.1,1.23398]
[1642546056686,0.00295765,3188.2,3188.1,9.33018]
[1642546056886,1.238999,3188.8,3188.3,0.15]
[1642546057086,1.238999,3188.8,3188.4,0.15]
[1642546057288,0.00284212,3188.7,3188.5,0.93388]
[1642546057688,0.002399,3188.8,3188.5,2.23388]
[1642546057689,0.00227369,3188.6,3188.5,2.23388]
[1642546057887,0.00227369,3188.6,3188.5,1.23388]
[1642546058087,0.00227369,3188.6,3188.5,2.23388]
[1642546058489,0.00227369,3188.6,3188.5,2.53388]
[1642546059029,0.00227369,3188.6,3188.5,5.17677744]
[1642546059232,0.00227369,3188.6,3188.5,6.17677744]
[1642546059435,0.002399,3188.8,3188.7,8.35]
[1642546059633,0.002399,3188.8,3188.7,13.09617443]
[1642546059834,0.002399,3189.5,3188.7,14.53291443]
[1642546060035,0.002399,3189.5,3189.1,0.01210714]
[1642546060233,0.00341054,3189.4,3189.2,0.1254]
[1642546060431,0.002399,3189.5,3189.4,8.3]
[1642546060633,0.002399,3189.5,3189.4,9.0254]
[1642546060832,0.002399,3189.5,3189.4,10.0254]
[1642546061233,1.54487478,3190.0,3189.5,8.15]
[1642546061440,2.39160763,3190.3,3189.7,0.93356]
[1642546061735,0.0029925,3190.3,3189.8,0.2753]
[1642546061936,0.0029925,3190.3,3189.8,2.80539395]
[1642546062133,0.0029925,3190.3,3190.0,0.15]
[1642546062334,0.0029925,3190.3,3190.2,0.93357]
[1642546062789,0.00810831,3190.3,3190.2,0.93357]
[1642546063284,0.00810831,3190.3,3190.2,1.93357]
[1642546063686,0.25038653,3190.3,3190.2,1.93357]
[1642546064287,0.00810831,3190.3,3190.2,1.93357]
[1642546064487,0.00810831,3190.3,3190.2,5.41097456]
[1642546064688,0.007,3190.4,3190.3,8.25]
[1642546065090,0.007,3190.4,3190.3,9.31488165]
[1642546065288,0.125669,3190.7,3190.6,1.7166]
[1642546065490,0.125669,3190.7,3190.6,2.0166]
[1642546065691,0.125669,3190.7,3190.6,5.5166]
[1642546065890,0.001902,3191.3,3190.7,8.05]
[1642546066096,0.001902,3191.3,3190.8,3.02740456]
[1642546066291,0.00454739,3191.1,3191.0,9.76617]
[1642546066531,13.68307593,3192.1,3191.2,0.15]
[1642546066737,13.68307593,3192.1,3191.3,0.2753]
[1642546067031,13.68307593,3192.1,3191.5,0.15]
[1642546067231,3.8332608,3192.1,3191.7,5.05]
[1642546067432,3.7850663,3192.1,3191.7,2.7161]
[1642546067633,0.01440112,3192.2,3191.8,1.15]
[1642546068034,0.00397896,3192.1,3191.8,1.15]
[1642546068435,0.00341054,3192.0,3191.8,1.15]
[1642546068637,0.00341054,3192.0,3191.9,0.15]
[1642546068835,0.01440112,3192.2,3191.9,0.15]
[1642546069138,0.01440112,3192.2,3192.1,0.15]
[1642546069539,0.01894851,3192.2,3192.1,5.2228]
[1642546069738,0.01894851,3192.2,3192.1,1.0728]
[1642546069936,0.01894851,3192.2,3192.1,3.63876]
[1642546070389,0.0029675,3192.6,3192.2,6.75]
[1642546070691,0.0029675,3192.6,3192.5,0.15]
[1642546071085,8.27297286,3193.1,3192.5,1.15]
[1642546071287,3.7292,3193.1,3192.5,1.15]
[1642546071488,0.00170527,3192.9,3192.5,1.15]
[1642546071990,0.1252,3193.1,3192.5,1.15]
[1642546071991,0.00113685,3192.8,3192.5,1.15]
[1642546072187,0.06066227,3192.6,3192.5,1.15]
[1642546073193,0.06066227,3192.6,3192.5,1.93287]
[1642546073393,7.369e-05,3193.0,3192.7,0.15]
[1642546073597,7.369e-05,3193.0,3192.9,8.1]
[1642546074031,7.369e-05,3193.0,3192.9,9.7]
[1642546074232,0.00117169,3193.2,3193.1,6.35]
[1642546074637,0.00230854,3193.2,3193.1,7.95]
[1642546074832,0.00221,3193.6,3193.3,0.15]
[1642546075032,0.00221,3193.6,3193.4,0.5752]
[1642546075241,0.00170527,3193.5,3193.4,0.8752]
[1642546075436,0.00170527,3193.5,3193.4,1.0578]
[1642546075633,0.00170527,3193.5,3193.4,0.2752]
[1642546076034,0.00170527,3193.5,3193.4,0.15]
[1642546076233,0.00170527,3193.5,3193.4,1.15]
[1642546080494,0.00170527,3193.5,3193.4,0.15]
[1642546081095,0.00170527,3193.5,3192.8,1.27626315]
[1642546081297,0.00170527,3193.5,3193.4,1.15]
[1642546081530,0.00221,3193.6,3193.4,1.15]
[1642546083235,0.00221,3193.6,3193.5,1.0]
[1642546083436,6.20221,3193.6,3193.5,1.15]
[1642546083635,6.2044837,3193.6,3193.5,1.15]
[1642546085392,7.9796837,3193.6,3193.5,1.15]
[1642546085587,7.9796837,3193.6,3192.9,0.00170527]
[1642546085588,7.90931289,3193.5,3192.9,0.00170527]
[1642546085888,0.00113685,3193.4,3192.8,0.00227369]
[1642546086083,0.1252,3193.3,3192.8,0.00227369]
[1642546087286,0.1252,3193.3,3192.4,0.00454739]
[1642546087888,18.5852,3193.3,3192.4,0.00454739]
[1642546088090,3.69959284,3193.2,3192.4,0.00454739]
[1642546088287,0.1252,3193.1,3192.4,0.00454739]
[1642546089137,0.13755057,3193.1,3192.4,0.00454739]
[1642546090344,18.46,3192.8,3192.4,0.00454739]
[1642546090537,18.5852,3192.7,3192.4,0.00454739]
[1642546090738,18.66622916,3192.7,3192.4,0.00454739]
[1642546091038,0.20622916,3192.7,3192.4,0.00454739]
[1642546091240,18.66622916,3192.7,3192.4,0.00454739]
[1642546091441,3.17605591,3192.6,3192.2,0.00568423]
[1642546091841,18.41,3192.6,3192.2,0.00568423]
[1642546092242,0.1252,3192.7,3192.2,0.00568423]
[1642546092442,7.46235057,3193.1,3192.2,0.00568423]
[1642546092443,21.944586,3192.9,3192.2,0.00568423]
[1642546093388,18.5852,3192.9,3192.2,0.00568423]
[1642546093789,18.46,3192.9,3192.2,0.13088423]
[1642546094289,18.46,3192.9,3192.3,0.00511581]
[1642546094491,0.1252,3192.8,3192.3,0.00511581]
[1642546094789,3.4787255,3193.0,3192.3,0.00511581]
[1642546094991,18.46,3192.9,3192.3,0.00511581]
[1642546095191,21.81964265,3192.8,3192.3,0.00511581]
[1642546095390,18.5852,3192.8,3192.3,0.00511581]
[1642546095991,18.46,3192.7,3192.3,0.00511581]
[1642546096192,0.1252,3192.6,3192.3,0.00511581]
[1642546096391,18.5852,3193.0,3192.3,0.00511581]
[1642546096633,18.5852,3193.0,3192.2,0.00568423]
[1642546097937,3.39588245,3192.9,3192.2,0.00568423]
[1642546098142,0.1252,3192.8,3192.2,0.00568423]
[1642546098342,21.83108245,3192.9,3192.2,0.00568423]
[1642546098537,0.1252,3192.8,3192.2,0.00568423]
[1642546099139,0.90855,3192.8,3192.2,0.00568423]
[1642546099539,3.17930325,3192.7,3192.2,0.00568423]
[1642546099739,7.75,3192.6,3191.5,0.14203007]
[1642546099939,21.63930325,3192.7,3191.5,0.14203007]
[1642546099940,3.17930325,3192.7,3191.5,0.14203007]
[1642546100140,0.00571931,3192.8,3191.6,0.00341054]
[1642546100141,0.00170527,3192.5,3191.6,0.00341054]
[1642546100399,0.00227369,3192.6,3191.6,0.00341054]
[1642546100595,0.00113684,3192.4,3191.6,0.00341054]
[1642546100801,0.00170527,3192.5,3191.6,0.00341054]
[1642546100993,0.00284211,3192.7,3191.6,0.00341054]
[1642546101203,0.00113684,3192.4,3191.6,0.00341054]
[1642546101394,18.46227369,3192.6,3191.6,0.00341054]
[1642546101795,0.00170527,3192.5,3191.6,0.00341054]
[1642546101996,0.00170527,3192.5,3191.7,0.1253]
[1642546102195,0.00113684,3192.4,3191.7,0.1253]
[1642546102396,0.00113684,3192.4,3191.8,0.0022737]
[1642546102595,0.00170527,3192.5,3191.8,0.0022737]
[1642546102796,0.1253,3192.4,3191.8,0.0022737]
[1642546102996,0.00113684,3192.4,3191.8,0.0022737]
[1642546105042,0.0050894,3192.3,3191.8,0.0022737]
[1642546106543,0.1330802,3192.2,3191.8,0.0022737]
[1642546107796,0.1330802,3192.2,3191.7,0.12814212]
[1642546107989,0.1330802,3192.2,3191.8,0.0022737]
[1642546108595,0.1330802,3192.2,3191.7,0.00284212]
[1642546109791,0.1330802,3192.2,3191.5,0.11914212]
[1642546110013,0.00508186,3192.1,3191.5,0.11914212]
[1642546110190,0.00735555,3192.1,3191.5,0.11914212]
[1642546110392,0.00170527,3192.0,3191.5,0.11914212]
[1642546110790,0.00113685,3191.9,3191.5,0.11914212]
[1642546111096,0.13478547,3192.0,3191.5,0.11914212]
[1642546111536,0.00113685,3191.9,3191.5,0.11914212]
[1642546113140,0.00113685,3191.9,3191.5,0.90242212]
[1642546113539,0.00113685,3191.9,3191.5,1.90242212]
[1642546113744,0.00113685,3191.9,3191.7,0.01236188]
[1642546114341,0.00113685,3191.9,3191.7,0.79560188]
[1642546114640,0.00113685,3191.9,3191.8,8.31848734]
[1642546114844,0.00113685,3191.9,3191.8,8.44378734]
[1642546115043,0.00113685,3191.9,3191.8,6.90796836]
[1642546115290,0.00113685,3191.9,3191.8,6.60796836]
[1642546115487,0.00113685,3191.9,3191.8,6.5753]
[1642546115687,0.00113685,3191.9,3191.8,6.8753]
[1642546115884,0.00113685,3191.9,3191.8,9.2830511]
[1642546116387,0.00113685,3191.9,3191.8,8.9830511]
[1642546116584,0.00113685,3191.9,3191.8,9.2830511]
[1642546116783,0.00113685,3191.9,3191.8,8.9830511]
[1642546117183,0.00113685,3191.9,3191.8,6.5753]
[1642546117890,0.00113685,3191.9,3191.8,5.5753]
[1642546118090,0.00113685,3191.9,3191.8,3.0753]
[1642546118291,0.00113685,3191.9,3191.8,5.74529826]
[1642546118488,0.00113685,3191.9,3191.8,5.61999826]
[1642546119138,0.00113685,3191.9,3191.8,8.03332572]
[1642546119536,0.00113685,3191.9,3191.8,9.03332572]
[1642546119742,0.00621116,3191.9,3191.8,9.03332572]
[1642546122545,0.00621116,3191.9,3191.8,9.33332572]
[1642546122795,0.00621116,3191.9,3191.8,9.15862572]
[1642546123190,0.00621116,3191.9,3191.8,9.75862572]
[1642546123594,0.00621116,3191.9,3191.8,9.45862572]
[1642546125792,0.00621116,3191.9,3191.8,6.48862746]
[1642546125992,0.00621116,3191.9,3191.8,9.44903563]
[1642546127046,0.00621116,3191.9,3191.8,6.48862746]
[1642546128750,0.00621116,3191.9,3191.8,9.1468963]
[1642546128952,0.00621116,3191.9,3191.8,9.0215963]
[1642546129150,0.00621116,3191.9,3191.8,3.41332746]
[1642546129553,0.00621116,3191.9,3191.8,2.41332746]
[1642546129752,0.00621116,3191.9,3191.8,3.41332746]
[1642546130154,0.00621116,3191.9,3191.8,2.41332746]
[1642546130794,0.00621116,3191.9,3191.8,2.36332746]
[1642546131499,0.00621116,3191.9,3191.7,0.01236188]
[1642546132100,3.0253,3191.8,3191.7,0.01236188]
[1642546132298,21.4853,3191.8,3191.7,0.01236188]
[1642546132500,0.1253,3191.8,3191.7,0.01236188]
[1642546132901,3.8753,3191.8,3191.7,0.01236188]
[1642546133100,0.1253,3191.8,3191.7,0.01236188]
[1642546134941,0.13163115,3191.8,3191.7,0.01236188]
[1642546135543,0.00633115,3191.8,3191.7,0.01236188]
[1642546135945,4.90633115,3191.8,3191.7,0.01236188]
[1642546137546,23.36633115,3191.8,3191.7,0.01236188]
[1642546137787,23.49163115,3191.8,3191.7,0.01236188]
[1642546141636,23.36633115,3191.8,3191.7,0.01236188]
[1642546143040,4.15,3191.7,3190.9,0.03774146]
[1642546143445,18.46,3191.6,3191.0,0.00397896]
[1642546144845,0.00696982,3191.5,3191.0,0.00397896]
[1642546148294,18.41696982,3191.6,3191.0,0.00397896]
[1642546148495,18.41696982,3191.9,3191.0,0.00397896]
[1642546148696,0.1253,3191.8,3191.0,0.00397896]
[1642546149843,0.13111951,3191.8,3191.0,0.00397896]
[1642546151145,0.14068455,3191.7,3191.1,2.34709876]
[1642546151344,0.1253,3191.6,3191.1,2.34709876]
[1642546151646,18.41696982,3191.4,3191.1,2.29994088]
[1642546151844,18.41696982,3191.4,3190.9,0.03774146]
[1642546152045,18.41696982,3191.4,3190.7,0.1271055]
[1642546152245,18.54226982,3191.4,3191.0,0.00113684]
[1642546153495,18.41696982,3191.4,3191.0,0.00113684]
[1642546154894,0.00580064,3191.3,3191.0,0.00113684]
[1642546157441,0.00580064,3191.3,3191.1,0.03158136]
[1642546157841,0.00580064,3191.3,3191.0,0.00113684]
[1642546158648,0.1253,3191.2,3191.0,0.00113684]
[1642546159646,18.5853,3191.2,3191.0,0.00113684]
[1642546159846,7.55,3191.1,3190.7,0.07824234]
[1642546160046,0.7839,3190.9,3190.7,0.02824234]
[1642546160292,7.5,3190.7,3190.5,0.03774146]
[1642546160501,18.46,3190.6,3190.5,0.03774146]
[1642546160701,18.46,3190.6,3190.2,0.0018068]
[1642546160702,7.5,3190.5,3190.2,0.0018068]
[1642546160902,18.46,3190.3,3190.2,0.0018068]
[1642546161494,18.76,3190.3,3190.2,0.0018068]
[1642546161695,18.76,3190.3,3190.2,6.8e-06]
[1642546162299,7.5,3190.2,3189.1,1.18632948]
[1642546162498,0.78412,3189.8,3189.1,1.18632948]
[1642546162702,21.79011874,3189.7,3189.2,0.01023163]
[1642546163098,18.46,3189.7,3189.2,0.01023163]
[1642546163303,3.12125256,3189.6,3189.2,0.01023163]
[1642546163499,0.1254,3189.5,3188.9,0.0119369]
[1642546163901,18.5854,3189.5,3188.7,0.01307374]
[1642546164145,18.46,3189.3,3188.7,0.01307374]
[1642546164352,3.10337502,3189.2,3188.7,0.01307374]
[1642546164549,0.90969,3189.1,3188.7,0.01307374]
[1642546164750,18.46,3189.0,3188.7,0.01307374]
[1642546164947,0.1254,3188.9,3188.7,0.01307374]
[1642546165146,18.46,3188.8,3188.0,0.1254]
[1642546165548,18.46,3188.8,3188.1,0.00341054]
[1642546165746,0.1254,3188.7,3188.1,0.00341054]
[1642546166148,3.21983717,3189.0,3188.0,0.00397897]
[1642546166350,18.46,3188.9,3188.0,0.00397897]
[1642546166551,0.1254,3188.8,3188.0,0.00397897]
[1642546167249,3.23581912,3188.8,3188.0,0.00397897]
[1642546167454,21.69581912,3188.8,3188.0,0.00397897]
[1642546167650,18.5854,3188.8,3188.0,0.00397897]
[1642546169398,0.1254,3188.8,3188.0,0.00397897]
[1642546169801,0.00444181,3188.7,3188.0,0.00397897]
[1642546173248,0.00444181,3188.7,3188.1,0.1254]
[1642546173647,0.00444181,3188.7,3188.2,0.00284212]
[1642546174646,0.00444181,3188.7,3188.2,1.91438633]
[1642546175150,0.00444181,3188.7,3188.3,0.0022737]
[1642546175820,0.00444181,3188.7,3188.2,0.00284212]
[1642546176218,0.00444181,3188.7,3188.2,1.91297713]
[1642546176618,0.00444181,3188.7,3188.3,0.0022737]
[1642546177320,0.00444181,3188.7,3188.4,0.90945]
[1642546177520,0.00444181,3188.7,3188.4,1.20945]
[1642546177719,0.00444181,3188.7,3188.5,0.00113685]
[1642546177920,0.00444181,3188.7,3188.6,3.4754]
[1642546178121,0.00444181,3188.7,3188.6,4.4754]
[1642546178421,3.2,3188.8,3188.7,0.00120093]
[1642546178620,3.2,3188.8,3188.7,0.78518093]
[1642546179850,3.20666649,3188.8,3188.7,1.08518093]
[1642546180051,3.20666649,3188.8,3188.7,2.08518093]
[1642546180250,3.20666649,3188.8,3188.7,2.99878095]
[1642546180451,3.20666649,3188.8,3188.7,3.99878095]
[1642546182900,3.20666649,3188.8,3188.7,4.01079578]
[1642546183099,3.20666649,3188.8,3188.7,6.64081071]
[1642546183700,3.20666649,3188.8,3188.7,4.01079578]
[1642546184101,3.20666649,3188.8,3188.7,3.99878095]
[1642546184803,3.20666649,3188.8,3188.7,4.12418095]
[1642546185802,3.20666649,3188.8,3188.7,6.76520465]
[1642546186004,3.20666649,3188.8,3188.7,3.99878095]
[1642546186666,3.20666649,3188.8,3188.7,6.63781891]
[1642546186864,3.20666649,3188.8,3188.7,7.03133448]
[1642546187067,3.20666649,3188.8,3188.7,4.40764817]
[1642546187269,3.20666649,3188.8,3188.7,7.35764817]
[1642546187462,3.20666649,3188.8,3188.7,4.40764817]
[1642546188269,3.20666649,3188.8,3188.7,3.32366817]
[1642546188467,3.20666649,3188.8,3188.7,2.32366817]
[1642546192804,3.20666649,3188.8,3188.7,0.41006815]
[1642546193002,22.74006649,3188.8,3188.7,0.41006815]
[1642546193803,22.74006649,3188.8,3188.5,0.00113685]
[1642546194255,22.74006649,3188.8,3188.0,0.00397897]
[1642546194455,1.2144,3188.7,3188.0,0.00397897]
[1642546194654,18.46,3188.6,3188.0,0.00397897]
[1642546195857,0.1254,3188.5,3188.0,0.00397897]
[1642546196056,0.1254,3188.5,3188.1,1.81911785]
[1642546196357,0.1254,3188.5,3188.2,0.00284212]
[1642546199810,18.46,3188.4,3188.2,0.00284212]
[1642546200014,18.46693781,3188.4,3188.0,0.00397897]
[1642546200812,18.46693781,3188.4,3188.0,1.82390058]
[1642546201653,18.46693781,3188.4,3188.1,1.81992161]
[1642546202052,18.46693781,3188.4,3188.2,0.00284212]
[1642546203260,0.00693781,3188.4,3188.2,0.00284212]
[1642546203859,0.00693781,3188.4,3188.0,0.00397897]
[1642546204663,0.00693781,3188.4,3188.1,1.81992161]
[1642546204965,21.80779587,3188.6,3188.2,0.00284212]
[1642546206012,21.80779587,3188.6,3188.0,0.00397897]
[1642546206609,21.80779587,3188.6,3188.0,1.82390058]
[1642546207609,18.59233403,3188.6,3188.0,1.82390058]
[1642546208015,18.46693403,3188.6,3188.0,1.82390058]
[1642546208314,18.46693403,3188.6,3188.0,0.00397897]
[1642546208716,0.00693403,3188.6,3188.1,1.81992161]
[1642546209159,0.00693403,3188.6,3188.3,0.0355602]
[1642546209557,0.00693403,3188.6,3188.4,0.00170527]
[1642546210366,0.00693403,3188.6,3188.4,1.81992161]
[1642546210758,0.00693403,3188.6,3188.5,0.00113685]
[1642546210960,0.00693403,3188.6,3188.5,7.40113685]
[1642546211160,0.00693403,3188.6,3188.5,7.52653685]
[1642546211362,0.00693403,3188.6,3188.5,0.12653685]
[1642546211861,0.00693403,3188.6,3188.5,0.91062685]
[1642546212062,0.00693403,3188.6,3188.5,7.86175734]
[1642546212264,0.00693403,3188.6,3188.5,9.98167895]
[1642546212463,0.00693403,3188.6,3188.5,10.98167895]
[1642546213809,3.2,3188.8,3188.6,0.00158817]
[1642546214008,3.2,3188.8,3188.7,4.5254]
[1642546214208,3.2,3188.8,3188.6,0.00158817]
[1642546215309,0.1254,3188.7,3188.6,0.00158817]
[1642546216572,3.2,3188.8,3188.6,0.00158817]
[1642546219978,3.25513122,3188.7,3188.6,0.00158817]
[1642546220179,0.00513122,3188.7,3188.6,0.00158817]
[1642546221716,0.00513122,3188.7,3188.6,0.78562817]
[1642546221917,0.00513122,3188.7,3188.6,8.38426104]
[1642546222120,0.00513122,3188.7,3188.6,1.78562817]
[1642546223120,0.00513122,3188.7,3188.6,3.60554978]
[1642546223327,0.00513122,3188.7,3188.6,3.73094978]
[1642546223920,0.00513122,3188.7,3188.6,9.44241587]
[1642546224156,0.00513122,3188.7,3188.6,6.34241587]
[1642546224758,0.00513122,3188.7,3188.6,2.73094978]